bitfinex-derivatives/quotes_ETHF0:USTF0_20250902
["timestamp","ask_amount","ask_price","bid_price","bid_amount"]
[1756812135244,0.3913,4377.9,4377.8,0.9338]
[1756812135754,3.2078,4378.1,4378.0,0.1186]
[1756812135944,3.4677,4378.9,4378.1,0.3134]
[1756812136251,1.22183641,4378.8,4378.7,0.5026]
[1756812137449,0.96193641,4378.8,4378.7,0.5026]
[1756812137649,0.96193641,4378.8,4378.7,0.6918]
[1756812137850,1.22183641,4378.8,4378.0,0.1186]
[1756812138051,0.1896,4378.2,4378.1,0.9338]
[1756812139454,0.6512,4378.7,4378.6,0.1892]
[1756812139653,1.22215167,4378.7,4378.6,0.3134]
[1756812139858,1.22215167,4378.7,4378.0,0.1186]
[1756812140156,0.1896,4378.2,4378.1,0.9338]
[1756812140552,0.1896,4378.2,4378.1,0.6918]
[1756812140753,0.3913,4378.2,4378.1,0.9338]
[1756812144660,0.1896,4378.3,4378.2,0.6918]
[1756812144860,0.3913,4378.3,4378.2,0.6918]
[1756812145357,3.859,4378.3,4378.2,0.3134]
[1756812145556,3.859,4378.3,4378.2,0.5544]
[1756812145754,3.5991,4378.3,4378.2,0.9328]
[1756812146964,3.859,4378.3,4378.2,0.7436]
[1756812147561,3.859,4378.3,4378.2,0.5026]
[1756812147762,3.859,4378.3,4378.2,0.7436]
[1756812148263,3.5991,4378.3,4378.2,0.9328]
[1756812148659,0.2599,4378.7,4378.2,0.9328]
[1756812148963,3.2078,4378.9,4378.3,0.3134]
[1756812149167,1.22265048,4378.8,4378.7,0.1892]
[1756812149363,1.22265048,4378.8,4378.7,0.5026]
[1756812150664,1.22265048,4378.8,4378.7,0.3134]
[1756812151165,1.22265048,4378.8,4378.3,0.3134]
[1756812151366,0.3913,4378.2,4378.1,0.5026]
[1756812151566,0.3913,4378.2,4378.1,0.7436]
[1756812151766,0.3913,4378.2,4378.1,0.9328]
[1756812154272,0.3913,4378.2,4378.1,0.6918]
[1756812154571,0.3913,4378.2,4378.1,0.9318]
[1756812155670,0.3913,4378.2,4378.1,0.6918]
[1756812155868,0.6512,4378.2,4377.6,0.3134]
[1756812156073,0.6512,4377.8,4377.7,0.5534]
[1756812157467,0.2599,4377.7,4377.1,40.8]
[1756812157668,0.2599,4377.1,4376.5,3.2078]
[1756812157869,0.1896,4376.6,4376.5,3.8996]
[1756812158067,0.1896,4376.6,4376.5,44.9396]
[1756812158572,0.1896,4376.6,4376.5,4.1396]
[1756812158770,0.1896,4376.6,4376.5,3.8996]
[1756812158962,0.1896,4376.6,4376.5,4.2583]
[1756812159165,0.2599,4377.1,4376.5,3.9449]
[1756812159362,0.2087,4376.7,4376.6,0.7288]
[1756812159566,0.2604,4377.2,4376.6,0.7288]
[1756812159771,3.2078,4377.3,4377.2,0.4173]
[1756812159969,3.8842,4377.3,4377.2,0.7288]
[1756812160473,3.6238,4377.3,4377.2,0.7288]
[1756812161570,3.2078,4377.3,4377.2,0.7288]
[1756812161775,3.4165,4377.9,4377.8,0.4173]
[1756812161976,3.2078,4378.4,4377.8,0.7288]
[1756812162168,3.6238,4378.4,4378.3,0.2093]
[1756812162368,4.19438516,4378.4,4377.7,0.24]
[1756812162569,0.2087,4377.9,4377.8,0.7288]
[1756812163679,3.4682,4378.4,4377.8,0.7288]
[1756812163873,0.416,4378.0,4377.9,0.5208]
[1756812164378,0.416,4378.0,4377.9,0.7288]
[1756812164573,0.416,4378.0,4377.9,0.9688]
[1756812165275,0.2087,4378.0,4377.9,0.9688]
[1756812165471,3.4682,4378.4,4377.9,0.6573]
[1756812165675,3.2078,4378.4,4378.3,0.7288]
[1756812166482,3.4165,4378.4,4378.3,0.7288]
[1756812166775,3.6238,4378.4,4378.3,0.7288]
[1756812167779,3.4165,4378.4,4378.3,0.9678]
[1756812167980,3.2078,4378.4,4378.3,0.9678]
[1756812170179,3.4165,4378.4,4378.3,0.9678]
[1756812171175,0.2087,4378.4,4378.3,0.9678]
[1756812172678,0.2604,4378.8,4378.4,0.3115]
[1756812172883,3.8842,4378.9,4378.8,0.5208]
[1756812173581,3.8842,4378.9,4378.8,0.3115]
[1756812174281,3.8842,4378.9,4378.4,0.3115]
[1756812174582,0.416,4378.1,4378.0,0.3115]
[1756812174778,0.6764,4378.1,4378.0,0.5505]
[1756812174970,0.6764,4378.1,4378.0,0.3115]
[1756812175174,0.416,4378.1,4378.0,0.9678]
[1756812177181,0.2604,4378.5,4378.0,1.0865]
[1756812177380,0.2604,4378.8,4378.1,0.3115]
[1756812177580,0.416,4378.8,4378.7,0.7288]
[1756812178674,3.2078,4378.9,4378.7,0.7288]
[1756812178876,3.2078,4378.9,4378.8,0.7288]
[1756812179577,3.4165,4378.9,4378.8,0.7288]
[1756812180686,3.6238,4378.9,4378.6,0.238]
[1756812180986,0.6764,4378.8,4378.7,0.5208]
[1756812182185,0.416,4378.8,4378.7,0.5208]
[1756812182585,0.416,4378.8,4378.7,0.7288]
[1756812184581,3.2078,4379.4,4378.8,0.3115]
[1756812184886,3.8838,4379.4,4379.3,0.3115]
[1756812185080,3.6238,4379.4,4379.1,0.3115]
[1756812185287,0.416,4379.1,4379.0,0.4473]
[1756812185485,0.416,4379.1,4379.0,0.2093]
[1756812185783,0.676,4379.1,4379.0,0.5208]
[1756812185979,0.416,4379.1,4379.0,0.7288]
[1756812187184,0.2087,4379.1,4379.0,0.7288]
[1756812187480,3.4165,4379.4,4379.3,0.7288]
[1756812187786,3.6238,4379.4,4379.3,0.7288]
[1756812187984,3.6238,4379.4,4378.9,0.238]
[1756812187985,3.8838,4379.4,4378.7,0.238]
[1756812188179,3.8838,4379.4,4378.8,0.3115]
[1756812190583,3.6238,4379.4,4379.3,0.7137]
[1756812192187,3.8837,4379.4,4379.3,0.7137]
[1756812195597,3.6238,4379.4,4379.3,0.7137]
[1756812196490,3.4165,4379.4,4379.3,0.7137]
[1756812196692,0.2087,4379.4,4379.3,0.7137]
[1756812196895,0.2599,4379.8,4379.3,0.4089]
[1756812197098,0.6603,4379.8,4379.7,0.5073]
[1756812197294,0.9723785,4379.8,4379.7,0.5073]
[1756812197490,0.9723785,4379.8,4379.7,0.7069]
[1756812197887,1.2322785,4379.8,4379.7,0.7069]
[1756812198091,1.2322785,4379.8,4379.7,0.5073]
[1756812198401,0.6603,4379.8,4379.7,0.5073]
[1756812198692,0.6603,4379.8,4379.7,0.3048]
[1756812198997,3.2078,4380.0,4379.0,0.1162]
[1756812198998,0.2599,4379.7,4379.2,0.237]
[1756812199186,0.6603,4379.3,4379.2,0.5418]
[1756812199390,0.6603,4379.3,4379.2,0.5073]
[1756812199590,0.6603,4379.3,4379.2,0.7443]
[1756812200793,0.4004,4379.3,4379.2,0.9439]
[1756812204205,0.4004,4379.3,4379.2,0.7069]
[1756812204504,0.4004,4379.3,4379.2,0.9429]
[1756812205700,3.8681,4379.3,4379.2,0.236]
[1756812205906,3.8681,4379.3,4379.2,0.5408]
[1756812206201,0.6603,4379.0,4378.9,0.236]
[1756812206403,0.4004,4379.0,4378.6,0.5408]
[1756812206705,0.6603,4378.7,4378.6,0.236]
[1756812206904,0.6603,4378.2,4378.1,0.5073]
[1756812207205,0.4004,4378.2,4378.1,0.9429]
[1756812211406,0.4004,4378.2,4378.1,0.7069]
[1756812211606,0.4004,4378.2,4378.1,0.9429]
[1756812213106,0.6603,4377.6,4377.5,0.2025]
[1756812213601,0.4004,4377.6,4377.5,0.7069]
[1756812214503,3.2078,4377.7,4377.4,0.236]
[1756812214504,0.4004,4377.5,4377.4,0.236]
[1756812214805,0.6603,4377.5,4377.4,0.5408]
[1756812215005,0.4004,4377.5,4377.4,0.9429]
[1756812215207,0.6603,4377.5,4377.4,0.7433]
[1756812216002,3.2078,4378.2,4377.7,0.3048]
[1756812216201,3.2078,4378.2,4378.1,0.7069]
[1756812216202,3.4062,4378.2,4378.1,0.7069]
[1756812216602,3.6082,4378.2,4378.1,0.9429]
[1756812217210,3.2078,4378.2,4378.1,0.9429]
[1756812221112,3.4668,4378.9,4378.1,4.6381]
[1756812221305,3.4668,4378.9,4378.8,0.6878]
[1756812221306,0.1896,4378.9,4378.8,0.6878]
[1756812221509,0.3921,4378.9,4378.8,0.6878]
[1756812221708,0.3921,4378.9,4378.0,0.1162]
[1756812221709,0.3921,4378.1,4378.0,0.4983]
[1756812222415,0.3921,4378.1,4378.0,0.6878]
[1756812223919,0.1896,4378.1,4378.0,0.8026]
[1756812224317,0.6511,4378.1,4378.0,0.3091]
[1756812224611,0.259,4378.0,4377.9,0.3091]
[1756812224808,0.6511,4378.0,4377.6,0.236]
[1756812225005,0.3921,4377.7,4377.6,0.7343]
[1756812225208,0.3921,4377.7,4377.6,0.9238]
[1756812229214,0.3921,4377.7,4377.6,0.6878]
[1756812229420,0.3921,4377.7,4377.6,0.9238]
[1756812230921,0.6511,4377.7,4377.6,0.4983]
[1756812233221,3.2078,4377.9,4377.6,0.3787]
[1756812233418,3.3974,4377.9,4377.8,0.3787]
[1756812233623,3.3974,4377.9,4377.8,0.6878]
[1756812233923,3.5999,4377.9,4377.8,0.6878]
[1756812234127,3.8589,4377.9,4377.8,0.6878]
[1756812234722,3.8589,4377.9,4377.8,0.3091]
[1756812235725,3.8589,4377.9,4377.8,0.4983]
[1756812235928,3.5999,4377.9,4377.8,0.6878]
[1756812236224,3.2078,4378.5,4377.8,4.6878]
[1756812236431,0.1896,4378.4,4378.3,0.3787]
[1756812236623,0.1896,4378.4,4378.3,0.6878]
[1756812238228,0.1896,4378.4,4378.3,0.3091]
[1756812238420,0.3921,4378.4,4378.3,0.6878]
[1756812238625,0.1896,4378.4,4378.3,0.6878]
[1756812239635,0.3921,4378.4,4378.3,0.6878]
[1756812240429,0.6511,4378.4,4378.3,0.6878]
[1756812240635,0.3921,4378.4,4378.3,0.6878]
[1756812241535,3.2078,4378.5,4378.3,0.3787]
[1756812241734,3.2078,4378.5,4378.4,0.6878]
[1756812242634,3.2078,4379.0,4378.4,0.6878]
[1756812242828,0.1896,4378.5,4378.4,0.6878]
[1756812243227,0.3921,4378.5,4378.4,0.6878]
[1756812244638,0.1896,4378.5,4378.4,0.6878]
[1756812244839,3.4677,4379.0,4378.4,0.3787]
[1756812245043,0.76145633,4378.9,4378.8,0.1892]
[1756812245240,1.22385633,4378.9,4378.8,0.4983]
[1756812245436,0.96395633,4378.9,4378.8,0.4983]
[1756812245641,0.96395633,4378.9,4378.8,0.6878]
[1756812246146,0.57185633,4378.9,4378.1,0.236]
[1756812246347,3.8598,4378.2,4378.1,0.6878]
[1756812246843,3.5999,4378.2,4378.1,0.6878]
[1756812247346,3.8598,4378.2,4378.1,0.6878]
[1756812248545,3.5999,4378.2,4378.1,0.6878]
[1756812250245,3.8597,4378.2,4378.1,0.6878]
[1756812251947,3.5999,4378.2,4378.1,0.6878]
[1756812255051,3.8597,4378.2,4378.1,0.6878]
[1756812255249,3.5999,4378.2,4378.1,0.6878]
[1756812256847,3.8597,4378.2,4378.1,0.4983]
[1756812257550,0.2598,4378.1,4377.6,0.3105]
[1756812257751,0.6708,4377.7,4377.6,0.5465]
[1756812258852,0.6708,4377.7,4377.6,0.7523]
[1756812260556,0.6708,4377.7,4377.6,0.5163]
[1756812265561,0.411,4377.7,4377.6,0.7057]
[1756812265855,3.2078,4378.2,4378.1,0.3952]
[1756812266157,3.2078,4378.2,4378.1,0.7057]
[1756812266554,3.4108,4378.2,4378.1,0.7057]
[1756812268159,0.203,4378.2,4378.1,0.7057]
[1756812269059,0.2598,4378.7,4378.2,0.3105]
[1756812269255,0.9838975,4378.6,4378.5,0.2058]
[1756812269462,0.9838975,4378.6,4378.5,0.5163]
[1756812269653,1.2436975,4378.6,4378.5,0.5163]
[1756812271563,1.24372998,4378.6,4378.5,0.5163]
[1756812272663,1.24372998,4378.6,4378.5,0.7057]
[1756812275369,1.24372998,4378.6,4378.5,0.5163]
[1756812276768,0.98392998,4378.6,4378.5,0.7057]
[1756812277366,1.24372998,4378.6,4378.5,0.7057]
[1756812278067,1.24372998,4378.6,4377.6,0.3105]
[1756812278271,0.98392998,4378.5,4378.4,0.2058]
[1756812278471,1.24372998,4378.5,4378.4,0.5163]
[1756812281575,1.24372998,4378.5,4377.6,0.298]
[1756812281770,1.22322998,4378.4,4378.3,0.497]
[1756812281970,0.96432998,4378.4,4378.3,0.6889]
[1756812282868,0.57292998,4378.4,4378.3,0.6889]
[1756812283074,3.2078,4378.8,4378.5,0.1178]
[1756812283274,3.2078,4378.8,4378.7,0.6889]
[1756812283473,3.4103,4378.8,4378.7,0.6889]
[1756812283766,0.2025,4378.8,4378.7,0.6889]
[1756812284671,4.43102065,4378.8,4378.7,0.298]
[1756812284872,0.2025,4377.9,4377.8,0.6889]
[1756812287270,0.6503,4377.9,4377.8,0.298]
[1756812289181,1.22432752,4377.9,4377.8,0.298]
[1756812289479,1.22427929,4377.9,4377.2,0.235]
[1756812289775,0.3914,4377.3,4377.2,0.732]
[1756812290169,0.3914,4377.3,4377.2,0.6889]
[1756812290369,0.2589,4377.2,4376.6,0.298]
[1756812290572,0.3914,4376.7,4376.6,0.497]
[1756812290872,0.3914,4376.7,4376.6,0.6889]
[1756812293976,0.2025,4376.7,4376.6,0.6889]
[1756812295490,0.38748381,4376.7,4376.6,0.6889]
[1756812295981,0.57638381,4376.7,4376.6,0.6889]
[1756812296179,0.83528381,4376.7,4376.6,0.298]
[1756812296385,0.83528381,4376.7,4376.1,0.298]
[1756812296681,0.3914,4376.2,4376.1,0.6889]
[1756812296982,0.57638381,4376.2,4376.1,0.6889]
[1756812298081,0.38748381,4376.2,4376.1,0.6889]
[1756812299086,0.57638381,4376.2,4376.1,0.6889]
[1756812299885,0.18498381,4376.2,4376.1,0.6889]
[1756812300090,0.18463981,4376.2,4376.1,0.6889]
[1756812300278,0.18463981,4376.2,4376.1,0.9239]
[1756812302486,0.18455002,4376.2,4376.1,1.15241]
[1756812302680,3.4103,4376.9,4376.8,0.3909]
[1756812302884,3.4103,4376.9,4376.8,0.6889]
[1756812303188,3.8961,4376.9,4376.8,0.6889]
[1756812304185,3.4103,4376.9,4376.8,0.6889]
[1756812304383,3.2078,4376.9,4376.8,0.6889]
[1756812305584,3.2078,4377.8,4376.8,4.6889]
[1756812305786,3.2078,4377.8,4376.9,0.298]
[1756812305984,3.8961,4377.8,4377.7,0.6889]
[1756812306288,3.5992,4377.8,4377.7,0.6889]
[1756812306589,3.8961,4377.8,4377.7,0.6889]
[1756812307883,3.2078,4377.8,4377.7,0.6889]
[1756812311190,3.4124,4377.8,4377.7,0.9239]
[1756812311891,3.4124,4377.8,4377.7,41.7239]
[1756812312894,3.7173,4377.8,4377.7,41.7239]
[1756812313094,3.4124,4377.8,4377.7,41.7239]
[1756812313488,3.4124,4377.8,4377.7,41.4889]
[1756812313689,3.4124,4377.8,4377.7,41.7239]
[1756812316192,3.2078,4377.8,4377.7,41.7239]
[1756812317595,3.9076,4378.4,4378.3,0.2018]
[1756812317795,3.9076,4378.4,4378.3,0.7505]
[1756812319298,3.9076,4378.4,4378.3,0.9566]
[1756812319501,3.4124,4378.4,4378.3,0.9566]
[1756812319696,3.2078,4379.0,4378.7,0.7216]
[1756812319996,0.0907,4380.5,4378.1,3.2078]
[1756812319997,3.2078,4379.5,4378.9,0.4079]
[1756812320189,3.9076,4379.5,4379.4,0.2018]
[1756812320386,3.9076,4379.5,4379.2,0.166]
[1756812320799,3.6027,4379.5,4379.2,0.4797]
[1756812321095,0.6998,4379.3,4379.2,0.6815]
[1756812324498,0.6998,4379.3,4379.2,0.4797]
[1756812324695,0.6998,4379.3,4379.2,0.166]
[1756812325299,0.6998,4379.3,4377.8,3.2078]
[1756812325300,0.6998,4378.6,4378.5,0.3137]
[1756812325492,0.6998,4378.6,4378.5,0.5487]
[1756812325689,0.6998,4378.6,4378.5,0.7505]
[1756812326097,3.2078,4378.8,4378.5,0.9566]
[1756812326297,3.2078,4378.8,4378.6,0.3137]
[1756812326494,0.2046,4378.7,4378.6,0.7216]
[1756812327800,0.3049,4379.0,4378.6,0.4079]
[1756812328001,3.9076,4378.8,4378.7,0.7216]
[1756812330803,3.6027,4378.8,4378.7,0.7216]
[1756812331100,3.2078,4378.8,4378.7,0.7216]
[1756812332411,0.3049,4379.4,4378.7,0.7216]
[1756812332601,0.3049,4379.4,4378.8,0.3137]
[1756812332997,0.5095,4379.4,4379.3,0.2018]
[1756812333199,0.6998,4379.4,4379.3,0.7216]
[1756812334903,0.3949,4379.4,4379.3,0.7216]
[1756812337006,0.2046,4379.4,4379.3,0.7216]
[1756812339910,3.2078,4379.6,4379.4,0.2955]
[1756812340211,3.4153,4379.6,4379.5,0.6884]
[1756812340410,3.8986,4379.6,4379.5,0.6884]
[1756812342010,3.8986,4379.6,4379.5,0.4933]
[1756812344907,3.8986,4379.6,4379.5,0.6884]
[1756812348218,3.6147,4379.6,4379.5,0.6884]
[1756812349316,3.8986,4379.6,4379.5,0.6884]
[1756812349516,3.8986,4379.6,4379.5,0.2955]
[1756812351219,3.8986,4379.6,4379.5,0.4933]
[1756812351438,0.1063,4379.0,4377.7,0.235]
[1756812351719,0.6908,4377.8,4377.7,0.235]
[1756812353821,0.6908,4377.8,4377.7,0.7283]
[1756812354118,0.6908,4377.8,4377.7,0.9234]
[1756812356627,0.6908,4377.8,4377.7,0.7283]
[1756812356824,0.6908,4377.8,4377.7,0.4933]
[1756812357123,0.6908,4377.8,4377.7,0.7283]
[1756812365629,0.6908,4377.8,4377.0,0.2955]
[1756812365630,0.2839,4377.7,4377.0,0.2955]
[1756812365823,0.6908,4377.1,4377.0,0.6884]
[1756812366223,0.2839,4376.6,4376.5,0.2955]
[1756812366529,0.2839,4376.5,4376.4,33.1875]
[1756812366725,3.2078,4376.9,4376.0,40.8]
[1756812366927,0.6908,4376.1,4376.0,41.0955]
[1756812367323,0.6908,4376.1,4376.0,41.3305]
[1756812367523,0.4069,4376.1,4376.0,41.3305]
[1756812368027,0.2075,4376.1,4376.0,41.3305]
[1756812368831,0.4914,4376.4,4376.3,0.6884]
[1756812369129,0.4914,4376.4,4376.3,0.9234]
[1756812370729,0.6908,4376.4,4376.3,0.9234]
[1756812371331,0.2075,4376.4,4376.3,0.9234]
[1756812372223,3.2078,4376.9,4376.4,0.283]
[1756812372425,3.915,4376.9,4376.8,0.6895]
[1756812372626,3.915,4376.9,4376.8,0.9235]
[1756812374935,3.915,4376.9,4376.8,0.234]
[1756812375135,3.915,4376.9,4376.8,0.7253]
[1756812376235,3.6113,4376.9,4376.0,40.9243]
[1756812376426,3.2078,4376.9,4376.2,0.283]
[1756812376629,0.206,4376.3,4376.2,0.6895]
[1756812377328,0.3037,4376.6,4376.2,0.6895]
[1756812377528,0.3037,4376.6,4376.3,0.283]
[1756812377729,0.5097,4376.6,4376.5,0.4065]
[1756812377929,0.5097,4376.6,4376.5,0.6895]
[1756812378637,0.206,4376.6,4376.5,0.6895]
[1756812380337,0.7072,4376.6,4376.5,0.6895]
[1756812380839,0.7072,4376.6,4376.5,0.9235]
[1756812381540,0.4035,4376.6,4376.5,0.9235]
[1756812381732,0.206,4376.6,4376.5,0.9235]
[1756812383236,0.206,4376.6,4376.5,0.6895]
[1756812383445,0.7072,4376.6,4376.5,0.9235]
[1756812383941,0.4035,4376.6,4376.5,0.9235]
[1756812385637,0.206,4376.6,4376.5,0.9235]
[1756812385841,1.22665573,4378.2,4376.5,0.9235]
[1756812385842,0.206,4377.3,4377.2,0.6895]
[1756812390745,0.206,4377.3,4377.2,0.4913]
[1756812390746,0.7072,4377.3,4377.2,0.4913]
[1756812391049,0.7072,4377.3,4377.2,0.6895]
[1756812392737,0.4035,4377.3,4377.2,0.6895]
[1756812393143,0.206,4377.3,4377.2,0.6895]
[1756812393341,3.4138,4377.9,4377.8,0.4065]
[1756812393545,0.206,4377.9,4377.8,0.6895]
[1756812394749,0.7072,4377.9,4377.8,0.6895]
[1756812395451,0.4035,4377.9,4377.8,0.6895]
[1756812395750,0.206,4377.9,4377.8,0.6895]
[1756812399256,0.5009,4377.9,4377.8,0.6895]
[1756812400163,0.206,4377.9,4377.8,0.6895]
[1756812402264,3.4098,4378.4,4378.3,0.4003]
[1756812402452,0.202,4378.4,4378.3,0.7069]
[1756812403151,0.632,4378.4,4377.8,0.3066]
[1756812403353,0.6985,4377.9,4377.8,0.7069]
[1756812403555,3.2078,4378.5,4377.9,0.3066]
[1756812403755,3.4098,4378.5,4378.4,0.4003]
[1756812403955,3.4098,4378.5,4378.4,0.7069]
[1756812404355,3.9063,4378.5,4378.4,0.7069]
[1756812406056,0.2949,4378.4,4377.7,0.3066]
[1756812406262,0.4036,4377.8,4377.7,0.3066]
[1756812406563,0.6985,4377.8,4377.7,0.4978]
[1756812410463,0.6985,4377.8,4377.7,0.7069]
[1756812410664,0.202,4377.8,4377.7,0.7069]
[1756812410859,3.2078,4377.9,4377.7,0.4003]
[1756812411173,3.2078,4377.9,4377.8,0.7069]
[1756812414071,3.2078,4377.9,4377.8,0.9409]
[1756812415465,0.6985,4378.3,4378.2,0.4978]
[1756812418073,0.6985,4378.3,4378.2,0.7069]
[1756812419572,5.73145426,4378.3,4377.3,0.3066]
[1756812419777,0.1006,4379.0,4377.3,0.4003]
[1756812419778,0.2949,4377.9,4377.3,0.4003]
[1756812420075,0.202,4377.9,4377.8,0.7069]
[1756812420278,0.6985,4377.9,4377.8,0.7069]
[1756812420572,0.2949,4377.8,4377.5,0.234]
[1756812420874,0.6985,4377.6,4377.5,0.9409]
[1756812423081,3.9063,4378.0,4377.9,0.4003]
[1756812423378,3.9063,4378.0,4377.9,0.7069]
[1756812423776,0.202,4378.0,4377.9,0.7069]
[1756812424679,0.6985,4378.0,4377.9,0.7069]
[1756812434688,3.7173,4378.6,4378.5,0.2089]
[1756812434893,4.48668848,4378.6,4378.5,0.6968]
[1756812437186,0.4009,4377.8,4377.7,0.2089]
[1756812437388,0.706,4377.3,4377.2,3.9046]
[1756812438991,0.706,4377.3,4377.2,0.6968]
[1756812440598,3.9138,4377.3,4377.2,0.2965]
[1756812441895,3.9138,4377.3,4376.4,32.909]
[1756812441896,0.2044,4376.5,4376.4,32.909]
[1756812442098,0.2044,4376.5,4376.4,73.943]
[1756812442600,0.2044,4376.5,4376.4,33.4395]
[1756812442994,0.5095,4376.5,4376.4,33.2055]
[1756812443194,0.2044,4376.5,4376.4,33.4395]
[1756812446204,0.5095,4376.8,4376.7,0.4003]
[1756812446401,0.2044,4376.8,4376.7,0.9308]
[1756812449203,3.2078,4377.3,4376.8,0.2965]
[1756812449500,3.4122,4377.3,4377.2,0.4003]
[1756812449705,3.9138,4377.3,4377.2,0.6968]
[1756812453807,3.9138,4377.3,4377.2,0.5054]
[1756812456506,3.9138,4377.3,4377.2,0.6968]
[1756812458614,0.706,4377.3,4377.2,0.6968]
[1756812461203,0.706,4377.3,4377.2,0.5054]
[1756812462310,3.9138,4377.3,4377.2,0.5054]
[1756812462911,3.6185,4377.3,4377.2,0.7047]
[1756812463110,3.9229,4377.3,4377.2,0.7047]
[1756812467320,4.49551955,4377.3,4377.2,0.7047]
[1756812470620,4.49551955,4377.3,4377.2,0.5054]
[1756812475422,4.49551955,4377.3,4377.1,0.234]
[1756812475621,1.28771955,4377.2,4377.1,0.234]
[1756812476118,1.28771955,4377.2,4377.1,0.5396]
[1756812476420,1.28771955,4377.2,4377.1,0.7305]
[1756812477021,1.28771955,4377.2,4377.1,0.4965]
[1756812478520,1.28771955,4377.2,4377.1,0.6958]
[1756812484125,0.98331955,4377.2,4377.1,0.6958]
[1756812484722,1.08471955,4377.2,4377.1,0.6958]
[1756812484920,0.2077,4377.2,4377.1,0.6958]
[1756812487931,3.2078,4377.3,4377.1,0.6958]
[1756812488225,3.2078,4377.3,4377.2,0.3056]
[1756812488432,3.78232803,4377.3,4377.2,0.6958]
[1756812489733,3.99002803,4377.3,4377.2,0.6958]
[1756812490429,3.7172,4377.3,4377.2,0.6958]
[1756812490629,3.9236,4377.3,4377.2,0.6958]
[1756812491227,3.9236,4377.3,4377.2,0.5087]
[1756812491536,4.49805991,4377.3,4377.2,0.233]
[1756812494636,4.49805991,4377.3,4376.8,0.3122]
[1756812494834,0.4158,4376.9,4376.8,0.233]
[1756812495036,0.4158,4376.9,4376.8,0.5452]
[1756812495037,0.7175,4376.9,4376.8,0.5452]
[1756812495437,0.7175,4376.9,4376.8,0.7483]
[1756812496237,0.3017,4376.8,4376.7,0.233]
[1756812496433,0.7175,4376.8,4376.7,0.233]
[1756812496633,0.3017,4377.2,4376.6,0.233]
[1756812496835,0.7175,4376.7,4376.6,0.233]
[1756812498041,0.7175,4376.7,4376.6,0.5452]
[1756812498241,0.3017,4376.6,4376.4,0.233]
[1756812498438,0.7175,4376.5,4376.4,0.5452]
[1756812498633,0.7175,4376.5,4376.4,0.7483]
[1756812498838,0.7175,4376.0,4375.9,41.1122]
[1756812499040,0.7175,4376.0,4375.9,41.3452]
[1756812499243,0.4158,4376.0,4375.9,41.57372]
[1756812499742,0.5111,4376.0,4375.9,41.3452]
[1756812500441,0.2094,4376.0,4375.9,41.3452]
[1756812501233,0.2094,4376.0,4375.9,0.9482]
[1756812501845,0.7175,4376.0,4375.9,0.9482]
[1756812502138,0.7175,4376.0,4375.9,0.7152]
[1756812502344,0.7175,4376.0,4375.9,0.9482]
[1756812503247,0.4158,4376.0,4375.9,0.9482]
[1756812503745,0.7175,4376.0,4375.9,0.9482]
[1756812504440,3.2078,4376.3,4376.0,0.4317]
[1756812504644,3.4172,4376.3,4376.2,0.7152]
[1756812504845,3.4172,4376.3,4376.2,0.9482]
[1756812505045,3.9253,4376.3,4376.2,0.9482]
[1756812507044,3.9253,4376.3,4375.9,0.3122]
[1756812507045,0.3017,4376.2,4375.9,0.3122]
[1756812507247,0.3017,4376.2,4376.0,0.233]
[1756812507449,0.7175,4376.1,4376.0,0.7483]
[1756812507744,0.7175,4376.1,4376.0,0.9482]
[1756812510449,0.7175,4376.1,4376.0,0.7152]
[1756812510649,0.7175,4376.1,4376.0,0.9482]
[1756812511354,0.7175,4376.1,4376.0,0.7152]
[1756812511653,0.7175,4376.1,4376.0,0.9482]
[1756812511848,0.3017,4376.0,4375.8,0.3122]
[1756812512052,0.7175,4376.0,4375.9,0.7483]
[1756812517657,0.7175,4376.0,4374.6,0.18423578]
[1756812517658,0.3017,4375.9,4375.4,0.3122]
[1756812517853,0.7175,4375.4,4375.3,0.5452]
[1756812518959,0.4158,4375.4,4374.7,0.2942]
[1756812519160,0.233,4375.8,4374.6,3.2078]
[1756812519161,0.696,4374.9,4374.8,0.6318]
[1756812519660,0.696,4374.9,4374.8,0.926]
[1756812520958,0.3932,4374.9,4374.8,0.926]
[1756812521861,0.1937,4374.9,4374.8,0.926]
[1756812523566,3.2078,4375.1,4374.9,0.2942]
[1756812523770,3.4015,4375.1,4375.0,0.693]
[1756812524065,3.7043,4375.1,4375.0,0.693]
[1756812524462,3.4015,4375.1,4375.0,0.693]
[1756812525563,3.2078,4375.6,4375.0,0.518]
[1756812525867,0.1937,4375.7,4375.6,0.693]
[1756812526070,0.696,4375.7,4375.6,0.693]
[1756812528366,3.2078,4376.1,4375.7,0.2942]
[1756812528556,3.2078,4376.6,4376.1,0.2942]
[1756812528761,3.4015,4376.6,4376.5,0.693]
[1756812528961,3.9038,4376.6,4376.5,0.693]
[1756812529163,3.9038,4376.6,4375.2,3.2078]
[1756812529362,0.696,4375.7,4375.6,0.4908]
[1756812531967,0.696,4375.7,4375.4,0.2942]
[1756812532167,0.696,4375.7,4375.3,0.233]
[1756812532368,0.696,4375.7,4375.4,0.2942]
[1756812532572,0.696,4375.7,4375.3,0.233]
[1756812534373,0.696,4375.3,4375.2,0.926]
[1756812534871,0.3028,4375.6,4375.3,0.2942]